Cogmind - Beta 15 @@@ ROGUE MODE // 2025.06.05 @ 19:37:28 Player: Caricature Result: Destroyed by S-10 Pest with Light Assault Rifle Performance ------------- Evolutions (0) 0 Regions Visited (2) 400 Robots Destroyed (9) 45 Value Destroyed (167) 167 Prototype IDs (2) 40 Alien Tech Used (0) 0 Bonus (0) 0 TOTAL SCORE: 652 Bonus ------- None Cogmind --------- Core Integrity 0/250 Matter 292/300 Energy 120/125 System Corruption 0% Temperature Cool (0) Movement Flying (120) Ox1 Location -10/Subcaves Parts ------- > --- POWER (1) -------- Light Ion Engine > --- PROPULSION (2) --- Flight Unit > --- UTILITY (2) ------ Seismic Detector > --- WEAPON (2) ------- Makeshift Sword > --- INVENTORY (5) ---- Ion Engine Flight Unit Subdweller Laser Barrage Gun Peak State ------------ > --- POWER ------------ Light Ion Engine > --- PROPULSION ------- Flight Unit Flight Unit > --- UTILITY ---------- Seismic Detector > --- WEAPON ----------- Subdweller Laser Makeshift Sword > --- INVENTORY -------- Ion Engine Flight Unit Flight Unit Barrage Gun [Rating: 10] Favorites ----------- Power Ion Engine Engine Ion Engine Propulsion Aluminum Leg Leg Aluminum Leg Wheel Compact Wheel Flight Unit Flight Unit Utility Small Storage Unit Device Seismic Detector Storage Small Storage Unit Weapon Light Assault Rifle Energy Gun Small Laser Ballistic Gun Light Assault Rifle Slashing Weapon Makeshift Sword Build | -11 -10 -10 ------- Run | Yrd Mat Sub Slots Evolved . | . . . Power . | . . . Propulsion . | . . . Utility . | . . . Weapon . | . . . Parts Attached 19 | 9 4 6 Power 3 | 1 1 1 Engine 3 | 1 1 1 Core . | . . . Reactor . | . . . Propulsion 6 | 3 . 3 Treads . | . . . Leg 2 | 2 . . Wheel 1 | 1 . . Hover . | . . . Flight 3 | . . 3 Utility 3 | 2 1 . Device 2 | 1 1 . Storage 1 | 1 . . Processor . | . . . Hackware . | . . . Protection . | . . . Artifact . | . . . Weapon 7 | 3 2 2 Energy Gun 2 | . 1 1 Energy Cannon . | . . . Ballistic Gun 4 | 3 1 . Ballistic Cannon . | . . . Launcher . | . . . Special Weapon . | . . . Impact Weapon . | . . . Slashing Weapon 1 | . . 1 Piercing Weapon . | . . . Special Melee Weapon . | . . . Unidentified Prototypes . | . . . Parts Lost 6 | . 2 4 Power . | . . . Propulsion 4 | . . 4 Utility 1 | . 1 . Weapon 1 | . 1 . Highest Loss Streak 2 | . 2 2 To Critical Strikes . | . . . Average Backups 6 | 4 7 5 Power 1 | 1 2 1 Propulsion 2 | 1 3 2 Utility 1 | . 1 1 Weapon . | . 1 . Tool/Special . | . . . Unused Backups 7 | . 2 5 Power 1 | . . 1 Propulsion 2 | . 1 1 Utility 2 | . . 2 Weapon 2 | . 1 1 Tool/Special . | . . . Average Slot Usage (%) 94 | . 98 82 Engine 14 | . 14 14 Leg 22 | . 28 8 Flight 4 | . . 18 Device 12 | . 12 11 Storage 11 | . 14 4 Energy Gun 9 | . 8 10 Ballistic Gun 17 | . 19 11 Peak Build Rating 10 | 7 7 10 Average Rating 6 | 5 6 6 On Entrance 4 | . 7 7 Naked Turns . | . . . Heaviest Build 14 | 14 14 13 Greatest Support 20 | 20 20 20 Greatest Overweight (x) 4 | . . 4 Average Overweight (x) . | . . . Largest Inventory Capacity 8 | 8 8 8 Average Capacity 7 | 7 8 5 Most Carried 8 | 7 8 8 Average Carried 6 | 4 7 5 Final Capacity 8 | 8 8 5 Final Carried 8 | 5 8 4 Class Distribution -------------------- 88% | Mutant 11% | Scavenger-Mutant Dominant Class ---------------- Mutant | -10/Materials Scavenger-Mutant | -10/Subcaves Resources | -11 -10 -10 ----------- Run | Yrd Mat Sub Matter Collected 510 | 247 206 57 Remotely . | . . . Salvage Created 242 | 18 206 18 Parts 18 | 4 14 . Haulers Intercepted . | . . . Recyclers Shooed . | . . . Parts Field Recycled . | . . . Retrieved Matter . | . . . Parts Self-Destructed 6 | . . 6 Prevented . | . . . Kills | -11 -10 -10 ------- Run | Yrd Mat Sub Combat Hostiles Destroyed 7 | . 6 1 Melee 1 | . . 1 Guns 6 | . 6 . Classes Destroyed 4 | 1 3 . Builder 1 | . 1 . Tunneler 1 | 1 . . Swarmer 4 | . 3 1 Grunt 3 | . 3 . Best Kill Streak 3 | 1 3 1 Combat Bots Only 3 | . 3 1 Max Kills in Single Turn 1 | 1 1 1 Gunslinging . | . . . Exploded . | . . . Melee 1 | . . 1 Uniques/NPCs Destroyed . | . . . Combat | -11 -10 -10 -------- Run | Yrd Mat Sub Hostile Shots Fired 114 | . 68 46 Missed 32 | . 18 14 Hits 82 | . 50 32 Projectile 82 | . 50 32 Critical Strikes 2 | . . 2 Damage Taken 937 | . 516 421 Core 252 | . 123 129 Absorbed by Shields . | . . . Regen/Repaired (Parts) 12 | . 12 . Core Remaining (%) 100 | 100 . . Volleys Fired 34 | 7 26 1 Largest 2 | 2 2 2 Hottest 60 | 40 60 60 Shots Fired 68 | 14 52 2 Gun 68 | 14 52 2 Cannon . | . . . Launcher . | . . . Special . | . . . Kinetic 64 | 14 49 1 Thermal 4 | . 3 1 Explosive . | . . . Electromagnetic . | . . . Robot Hit Streak 6 | 3 6 1 Robot Miss Streak 4 | 2 4 1 Penetration Max . | . . . Secondary Targets 2 | . 2 . Max Gunslinging Chain 1 | . 1 . Shots Hit Robots 38 | 7 28 3 Core Hits 14 | 2 11 1 Critical Kills . | . . . Critical Parts Destroyed 1 | 1 . . Critical Strikes 1 | 1 . . Destroy 1 | 1 . . Melee Attacks 8 | . . 8 Impact . | . . . Slashing 8 | . . 8 Piercing . | . . . Sneak Attacks . | . . . Combat Hostiles . | . . . Follow-up Attacks . | . . . Damage Inflicted 449 | 64 301 84 Guns 374 | 64 301 9 Cannons . | . . . Explosions . | . . . Melee 75 | . . 75 Ramming . | . . . Kinetic 364 | 64 291 9 Thermal 10 | . 10 . Explosive . | . . . Electromagnetic . | . . . Impact . | . . . Slashing 75 | . . 75 Piercing . | . . . Highest Corruption . | . . . Average Corruption . | . . . Corruption Purged . | . . . Corruption Blocked . | . . . Overload Shots . | . . . Overflow Damage 18 | . . 18 Projectiles . | . . . Explosions . | . . . Melee 18 | . . 18 Knockbacks . | . . . Impact . | . . . Kinetic . | . . . Secondary . | . . . Self-Inflicted Damage . | . . . Shots . | . . . Rammed . | . . . Targets Rammed . | . . . Kicked . | . . . Crushed . | . . . Highest Temperature 21 | . 21 . Average Temperature 10 | . 10 . Received Heat Transfer 231 | . 147 84 Siege Activations . | . . . Martial Activations . | . . . Shielding Activations . | . . . Robots Disrupted . | . . . Combat Hostiles . | . . . Robots Corrupted . | . . . Combat Hostiles . | . . . Parts Fried . | . . . Impact Corruptions . | . . . Robots Melted . | . . . Combat Hostiles . | . . . Parts Melted . | . . . Heat Transferred 25 | . 25 . Parts Sabotaged . | . . . Parts Stolen . | . . . Parts Stripped . | . . . Power Chain Reactions . | . . . Alert | -11 -10 -10 ------- Run | Yrd Mat Sub Maximum Alert Level . | . . . Low Security (%) 100 | 100 100 . Level 1 . | . . . Level 2 . | . . . Level 3 . | . . . Level 4 . | . . . Level 5 . | . . . High Security . | . . . Max Security . | . . . Peak Influence 80 | 5 80 . Initial . | . . . Average 17 | . 22 . Influence Increases 180 | 5 155 20 Destroy 0b10 Robot/C 140 | . 120 20 Destroy 0b10 Robot/NC 10 | 5 5 . Destroy Leader 30 | . 30 . Influence Decreases 170 | 5 155 10 Time Decay 140 | 5 135 . Lost Part 30 | . 20 10 Squads Dispatched 1 | . 1 . Investigation . | . . . Extermination . | . . . Reinforcement 1 | . 1 . Assault . | . . . Garrison . | . . . Intercept . | . . . Searches Triggered . | . . . Construction Impeded . | . . . Haulers Reinforced . | . . . Active Scanning Responses . | . . . Cargo Convoy Interrupts . | . . . Stealth | -11 -10 -10 --------- Run | Yrd Mat Sub Distress Signals . | . . . Communications Jammed . | . . . Distress Signals . | . . . Times Spotted 16 | . 8 8 Peak Tracking Total 5 | . 3 5 Tactical Retreats 1 | . . 1 Traps | -11 -10 -10 ------- Run | Yrd Mat Sub Traps Triggered 1 | . 1 . Indirectly . | . . . Trap Hack Attempts . | . . . Triggered . | . . . Disarmed . | . . . Reprogrammed . | . . . Reused . | . . . Traps Extracted . | . . . Installed . | . . . Triggered . | . . . Machines | -11 -10 -10 ---------- Run | Yrd Mat Sub Machines Disabled . | . . . Max in Single Turn . | . . . Machines Repaired . | . . . Machines Dismantled . | . . . Machines Sabotaged . | . . . Overloaded Fab Kills . | . . . Hacking | -11 -10 -10 --------- Run | Yrd Mat Sub Machines Accessed 2 | . 2 . Terminals 1 | . 1 . Fabricators . | . . . Repair Stations 1 | . 1 . Recycling Units . | . . . Scanalyzers . | . . . Garrison Access . | . . . Total Hacks 5 | . 5 . Successful 3 | . 3 . Failed 2 | . 2 . Catastrophic . | . . . Database Lockouts . | . . . Manual . | . . . Terminals 2 | . 2 . Fabricators . | . . . Repair Stations 3 | . 3 . Recycling Units . | . . . Scanalyzers . | . . . Garrison Access . | . . . Terminal Hacks 1 | . 1 . Prototype ID Bank 1 | . 1 . Fabricator Hacks . | . . . Repair Station Hacks 2 | . 2 . Scan Component 1 | . 1 . Repair 1 | . 1 . Recycling Unit Hacks . | . . . Scanalyzer . | . . . Garrison Access Hacks . | . . . Unauthorized Hacks . | . . . Terminals . | . . . Fabricators . | . . . Repair Stations . | . . . Recycling Units . | . . . Scanalyzers . | . . . Garrison Access . | . . . Data Cores Recovered . | . . . Used . | . . . Hacking Detections 1 | . 1 . Full Trace Events . | . . . Feedback Events . | . . . Feedback Blocked . | . . . Robot Schematics Acquired . | . . . Robots Built . | . . . Authchips . | . . . Time . | . . . Total Robot Build Rating . | . . . Part Schematics Acquired . | . . . Parts Built . | . . . Authchips . | . . . Time . | . . . Total Part Build Rating . | . . . Parts Repaired 1 | . 1 . Time 26 | . 26 . Parts Recycled . | . . . Recycled Matter . | . . . Retrieved Matter . | . . . Retrieved Components . | . . . Parts Scanalyzed . | . . . Part Schematics Acquired . | . . . Parts Damaged . | . . . Bothacking | -11 -10 -10 ------------ Run | Yrd Mat Sub Used RIF Installer . | . . . Robots Hacked . | . . . Non-combat . | . . . Combat . | . . . Robot Hacks Applied . | . . . Relay Couplers Released . | . . . Fabnet Peak Effective % . | . . . Robots Rewired . | . . . Allies Hacked . | . . . Hacks Repelled . | . . . Allies | -11 -10 -10 -------- Run | Yrd Mat Sub Total Allies . | . . . Largest Group . | . . . Highest-Rated Group . | . . . Highest-Rated Ally . | . . . Total Orders . | . . . Ally Attacks . | . . . Total Damage . | . . . Kills . | . . . Allies Corrupted . | . . . Allies Melted . | . . . Intel | -11 -10 -10 ------- Run | Yrd Mat Sub Active Infowar (turns) 606 | 57 422 127 Structural 80 | . 80 . Seismic 526 | 57 342 127 Robot Analysis Total . | . . . Derelict Logs Recovered 1 | . . 1 Drone Launches . | . . . Drone Recoveries . | . . . Exploration | -11 -10 -10 ------------- Run | Yrd Mat Sub Turns Passed 741 | 122 464 155 Spaces Moved 599 | 76 288 235 Core 4 | 3 . 1 Treads . | . . . Legs 346 | 31 288 27 Wheels 42 | 42 . . Hover . | . . . Flight 207 | . . 207 Fastest Speed 37 | 50 120 37 Average Speed 91 | 106 120 51 Slowest Speed 250 | 120 120 250 Overloaded Moves . | . . . Propulsion Burnouts . | . . . Robots Hopped . | . . . Potential Cave-ins . | . . . Cave-ins Triggered . | . . . Exploration Rate (%) 21 | 5 41 17 Regions Visited 2 Branch Regions 1 Pre-discovered Areas 1 | . . 1 Known Exits Taken . | . . . Unknown Exits Taken 2 | 1 1 . Scrap Searched 2 | . . 2 Spaces Dug . | . . . Terrain Destroyed . | . . . Melee . | . . . Projectile . | . . . AOE . | . . . Terrain Rammed . | . . . Walls Destroyed . | . . . Machines Disabled . | . . . Actions | -11 -10 -10 --------- Run | Yrd Mat Sub Total 732 | 105 361 266 Wait 23 | . 23 . Move 597 | 75 287 235 Hop . | . . . Pick Up 30 | 12 12 6 Fast Attach . | . . . Attach 20 | 9 4 7 Detach 5 | 2 1 2 Swap 2 | . 2 . Drop 13 | . 6 7 Fire 34 | 7 26 1 Melee 8 | . . 8 Ram . | . . . Kick . | . . . Crush . | . . . Escape Stasis . | . . . Rewire . | . . . Trap . | . . . Miscellaneous . | . . . Route ------- -11/Scrapyard -10/Materials (discovered 2 exits: [*Mat] / [*Sub]) -10/Subcaves History --------- Turn | Location | Event 15 | -11/Scrapyard | Discovered new exit (range 16) 123 | -11/Scrapyard | Entered Materials 310 | -10/Materials | Build established: Mutant 354 | -10/Materials | Discovered new exit (range 11) 458 | -10/Materials | Repaired Flight Unit 577 | -10/Materials | Discovered new exit (range 9) 587 | -10/Materials | Entered Subcaves 588 | -10/Subcaves | Approached by a straggling Scientist 617 | -10/Subcaves | A Subdweller sparked back to life 617 | -10/Subcaves | A Subdweller sparked back to life 617 | -10/Subcaves | A Subdweller sparked back to life 624 | -10/Subcaves | Core integrity fell below 50% 642 | -10/Subcaves | Core integrity fell below 20% 685 | -10/Subcaves | Learned location of Mines (-8) 742 | -10/Subcaves | Destroyed by S-10 Pest with Light Assault Rifle Last Messages --------------- 00700_ Found 32 Matter. 00701_ Acquired Barrage Gun. 00703_ Dropped Sml. Laser. 00704_ Dropped Terrain Scan Processor. 00705_ Acquired Sub. Laser. 00710_ Searching scrap... 00710_ Found Mak. Sword. 00710_ Found Sub. Shrapnel Launcher. 00710_ Found 32 Matter. 00711_ Acquired Mak. Sword. 00712_ Dropped Lgt. Assault Rifle. 00714_ Acquired Lgt. Assault Rifle. 00715_ Dropped Sub. Laser. 00715_ Dropped Lgt. Assault Rifle. 00716_ Acquired Sub. Laser. 00718_ Acquired 12 matter. 00725_ Flight Unit destroyed. 00727_ Destroyed Flight Unit. 00729_ S-10 Pest destroyed. 00736_ Flight Unit destroyed. Map ----- +----------------------------------------------------+ | ?????????????????????????????????????????????????? | | ?????????????????????????????????????????????????? | | ?????????????????????????????????????????????????? | | ?????????????????????????????????????????????????? | | ?????????????????????????????????????????????????? | | ?????????????????????????????????????????????????? | | ?????????????????????????????????????????????????? | | ?????????????????????????????????????????????????? | | ?????????????????????????????????????????????????? | | ??????????????????????????????#??????????????????? | | ????????????????????????????? ##?????????????????? | | ????????????????????????????? ?????????????????? | | ????????????????????????????# ?????????????????? | | ??????????????????????????## ??????????????????? | | ?????????????????????????? #?##???????????????? | | ?????????????????????????? ## #???????????????? | | ?????????????????????????? ????????????????? | | ?????????????????????????? ?????????????????? | | ????????????????????????## #??????????????????? | | ????????????????????????# #???????????????????? | | ???????????????????????? #????????????????????? | | ????????????????????#####% #????????????????????? | | ????????????????????# ## #?????????????????????? | | ???????????????????## ###?????????????????????? | | ??????????????????## ss### #???????????????????? | | ??????????????????# @ #???????????????????? | | ?????????????????## #???????????????????? | | ?????????????????# # # #???????????????? | | ????????????????##"#### #???????????????? | | ???????????????##[##??## ?????????????? | | ???????????????# ]#????##### ???????????? | | ???????????????##%##????????## ##??????????? | | ????????????????## ###????????## #???????????? | | ?????????????????## #??????????### ???????????? | | ??????????????????## ##?????????????# ???????????? | | ???????????????????## #??????????????????????????? | | ??????????????????## ##??????????????????????????? | | ?????????????????## ##???????????????????????????? | | ?????????????????# ##????????????????????????????? | | ?????????????????# ##????????????????????????????? | | ?????????????????## ##???????????????????????????? | | ????????????????####%#???????????????????????????? | | ????????????????# %!##???????????????????????????? | | ????????????????### #????????????????????????????? | | ?????????????????# [##???????????????????????????? | | ?????????????????### ##??????????????????????????? | | ???????????????????## ##?????????????????????????? | | ????????????????????# #####?????????????????????? | | ???????????????????# ## ## ##????????????????????? | | ????????????????????# ##% #????????????????????? | +----------------------------------------------------+ Best States ------------- Heat Dissipation 25 Energy Generation 10 Energy Capacity 250 Matter Stores 300 Matter Capacity 300 Sight Range 16 Terrain Scan Density 10 Evasion (%) 62 Item Schematics ----------------- None Robot Schematics ------------------ None Fabricated ------------ Nothing Repaired ---------- Flight Unit | 40% | -10/Materials Alien Tech Used ----------------- None Achievements -------------- None Challenges ------------ None Game ------ Seed WeaponPortableDetonator Manual? 0 Play Time 00:20:00 Cumulative 2.3 hours Start 2025.06.05 @ 19:18:15 End 2025.06.05 @ 19:37:28 Sessions 1 Manual Loads 0 Difficulty Rogue Special Mode None Game No. 5 Rogue 5 Adventurer 0 Explorer 0 Win Type - Total 0 Types 0/0/0/0/0/0/0/0/0/0 Lore% 1 Gallery% 6 Achievement% 7 Wizard Run 0 Options --------- Layout 1 ASCII 0 Keyboard 0 Movement Vi Keybinds 0 Fullscreen 1 Font 24/Smallcaps Map View 50x35 Zoom Use 0% Tactical HUD 1 Map Filters NONE Filters NONE Steam 1 RUN: a75ee6f0-ae4b-4c3e-9815-bab04e68ac6f